[Event "*** Titled Tuesday Blitz"]
[Site "Chess.com"]
[Date "2020.02.04"]
[Round "7"]
[White "Rodalquilar"]
[Black "TristanCalistri"]
[Result "0-1"]
[WhiteElo "2622"]
[BlackElo "2310"]
[TimeControl "180+2"]
[EndTime "14:34:22 PST"]
[Termination "TristanCalistri won on time"]

1. d4 {[%clk 0:03:01.9]} 1... Nf6 {[%clk 0:03:00.2]} 2. Bf4 {[%clk 0:03:01.7]}
2... g6 {[%clk 0:03:00.5]} 3. e3 {[%clk 0:03:03.1]} 3... Bg7 {[%clk 0:03:01.2]}
4. Nf3 {[%clk 0:03:04.5]} 4... O-O {[%clk 0:03:02]} 5. Be2 {[%clk 0:03:06]} 5...
d6 {[%clk 0:03:03.5]} 6. O-O {[%clk 0:03:06.1]} 6... Nbd7 {[%clk 0:03:05]} 7. h3
{[%clk 0:03:04.9]} 7... c5 {[%clk 0:03:05.5]} 8. c3 {[%clk 0:03:00.7]} 8... b6
{[%clk 0:03:06.1]} 9. Nbd2 {[%clk 0:03:00.8]} 9... Bb7 {[%clk 0:03:07]} 10. Bh2
{[%clk 0:03:01.8]} 10... a6 {[%clk 0:03:07.9]} 11. a4 {[%clk 0:03:03.2]} 11...
Ra7 {[%clk 0:03:08.8]} 12. Qb3 {[%clk 0:03:03.5]} 12... Qa8 {[%clk 0:03:09.3]}
13. Rfd1 {[%clk 0:03:04.6]} 13... Ne4 {[%clk 0:02:57.5]} 14. Nxe4 {[%clk
0:03:05.8]} 14... Bxe4 {[%clk 0:02:58.3]} 15. d5 {[%clk 0:03:07.2]} 15... b5
{[%clk 0:02:29.5]} 16. axb5 {[%clk 0:03:00.4]} 16... Rb8 {[%clk 0:02:24.2]} 17.
Ng5 {[%clk 0:02:48.7]} 17... Nf6 {[%clk 0:01:39.9]} 18. Nxe4 {[%clk 0:02:28.3]}
18... Nxe4 {[%clk 0:01:40.5]} 19. Qc2 {[%clk 0:01:31]} 19... f5 {[%clk 0:01:13]}
20. bxa6 {[%clk 0:01:26.2]} 20... Rb6 {[%clk 0:01:07.5]} 21. Bc4 {[%clk
0:01:20.5]} 21... Qd8 {[%clk 0:00:51.9]} 22. Ra3 {[%clk 0:01:05.4]} 22... Nf6
{[%clk 0:00:50.1]} 23. Rb3 {[%clk 0:01:06.3]} 23... Rbxa6 {[%clk 0:00:49.1]} 24.
Bxa6 {[%clk 0:01:06.4]} 24... Rxa6 {[%clk 0:00:51]} 25. Qe2 {[%clk 0:00:51.1]}
25... Ra8 {[%clk 0:00:45.1]} 26. Qb5 {[%clk 0:00:47.7]} 26... Ne4 {[%clk
0:00:41.1]} 27. f3 {[%clk 0:00:33.2]} 27... Ng5 {[%clk 0:00:41.6]} 28. Bf4
{[%clk 0:00:27.4]} 28... Nf7 {[%clk 0:00:42.2]} 29. Qb6 {[%clk 0:00:28.7]} 29...
Qf8 {[%clk 0:00:42.1]} 30. h4 {[%clk 0:00:24]} 30... Bf6 {[%clk 0:00:42.8]} 31.
Bg3 {[%clk 0:00:25.2]} 31... Qh6 {[%clk 0:00:43.2]} 32. Re1 {[%clk 0:00:14.5]}
32... Bxh4 {[%clk 0:00:43.7]} 33. Bxh4 {[%clk 0:00:14.7]} 33... Qxh4 {[%clk
0:00:45.6]} 34. Kf1 {[%clk 0:00:16.3]} 34... Qh1+ {[%clk 0:00:27]} 35. Kf2
{[%clk 0:00:17.4]} 35... Qh4+ {[%clk 0:00:28.4]} 36. Kf1 {[%clk 0:00:18.7]}
36... Qh1+ {[%clk 0:00:29.4]} 37. Kf2 {[%clk 0:00:20.3]} 37... Qh4+ {[%clk
0:00:29.6]} 38. Ke2 {[%clk 0:00:21.4]} 38... Qg3 {[%clk 0:00:30.3]} 39. Rg1
{[%clk 0:00:21.5]} 39... Ra1 {[%clk 0:00:26.9]} 40. Rxa1 {[%clk 0:00:20.4]}
40... Qxg2+ {[%clk 0:00:28]} 41. Kd1 {[%clk 0:00:17]} 41... Qf1+ {[%clk
0:00:27]} 42. Kc2 {[%clk 0:00:18.4]} 42... Qxa1 {[%clk 0:00:24.7]} 43. Qc7
{[%clk 0:00:17.1]} 43... Qe1 {[%clk 0:00:21.1]} 44. Rb8+ {[%clk 0:00:18]} 44...
Kg7 {[%clk 0:00:21.3]} 45. Qxe7 {[%clk 0:00:19.6]} 45... Qe2+ {[%clk 0:00:21.6]}
46. Kb3 {[%clk 0:00:19.1]} 46... Qd1+ {[%clk 0:00:21.7]} 47. Ka3 {[%clk
0:00:14.7]} 47... Qxd5 {[%clk 0:00:22.4]} 48. Rb7 {[%clk 0:00:14.1]} 48... h5
{[%clk 0:00:22.5]} 49. e4 {[%clk 0:00:14.2]} 49... fxe4 {[%clk 0:00:19.7]} 50.
fxe4 {[%clk 0:00:16.1]} 50... Qc4 {[%clk 0:00:20.5]} 51. b3 {[%clk 0:00:16.5]}
51... Qa6+ {[%clk 0:00:21.3]} 52. Kb2 {[%clk 0:00:17.9]} 52... Qe2+ {[%clk
0:00:22.1]} 53. Ka3 {[%clk 0:00:18.3]} 53... Qa6+ {[%clk 0:00:22.5]} 54. Kb2
{[%clk 0:00:19.1]} 54... Qe2+ {[%clk 0:00:23.5]} 55. Kb1 {[%clk 0:00:20.7]}
55... Qf1+ {[%clk 0:00:24.4]} 56. Ka2 {[%clk 0:00:21]} 56... h4 {[%clk
0:00:25.2]} 57. Ra7 {[%clk 0:00:19.2]} 57... h3 {[%clk 0:00:25.3]} 58. e5 {[%clk
0:00:20.7]} 58... dxe5 {[%clk 0:00:24.6]} 59. Qxe5+ {[%clk 0:00:21.5]} 59... Kh7
{[%clk 0:00:24]} 60. Qd5 {[%clk 0:00:18.4]} 60... Qg2+ {[%clk 0:00:21.3]} 61.
Qxg2 {[%clk 0:00:13.9]} 61... hxg2 {[%clk 0:00:23.2]} 62. Rxf7+ {[%clk
0:00:14.9]} 62... Kg8 {[%clk 0:00:24.3]} 0-1

[Event "*** Titled Tuesday Blitz"]
[Site "Chess.com"]
[Date "2020.02.04"]
[Round "7"]
[White "Hadza_3"]
[Black "Arathorn2"]
[Result "1-0"]
[WhiteElo "2404"]
[BlackElo "2252"]
[TimeControl "180+2"]
[EndTime "14:34:27 PST"]
[Termination "Hadza_3 won by resignation"]

1. e4 {[%clk 0:03:01.9]} 1... c5 {[%clk 0:03:00]} 2. Nc3 {[%clk 0:02:55.5]} 2...
Nc6 {[%clk 0:03:00.1]} 3. f4 {[%clk 0:02:56.2]} 3... g6 {[%clk 0:03:00.1]} 4.
Nf3 {[%clk 0:02:57]} 4... Bg7 {[%clk 0:02:57.9]} 5. Bc4 {[%clk 0:02:57.7]} 5...
e6 {[%clk 0:02:58]} 6. O-O {[%clk 0:02:57.4]} 6... Nge7 {[%clk 0:02:54.6]} 7.
Qe1 {[%clk 0:02:57.5]} 7... O-O {[%clk 0:02:54.1]} 8. d3 {[%clk 0:02:56.2]} 8...
d5 {[%clk 0:02:49.4]} 9. Bb3 {[%clk 0:02:57.5]} 9... Nd4 {[%clk 0:02:49.2]} 10.
Qh4 {[%clk 0:02:56.6]} 10... Nxb3 {[%clk 0:02:45.1]} 11. axb3 {[%clk 0:02:58.5]}
11... Nc6 {[%clk 0:02:38.3]} 12. Qf2 {[%clk 0:02:58]} 12... Nd4 {[%clk
0:02:31.4]} 13. e5 {[%clk 0:02:55]} 13... Nxf3+ {[%clk 0:02:28.6]} 14. Qxf3
{[%clk 0:02:56.9]} 14... f6 {[%clk 0:02:27.4]} 15. exf6 {[%clk 0:02:56.6]} 15...
Qxf6 {[%clk 0:02:24.8]} 16. Bd2 {[%clk 0:02:51.6]} 16... Bd7 {[%clk 0:02:24.4]}
17. Kh1 {[%clk 0:02:49.1]} 17... a6 {[%clk 0:02:24.7]} 18. Rae1 {[%clk
0:02:48.1]} 18... Rae8 {[%clk 0:02:24.3]} 19. Re2 {[%clk 0:02:28.2]} 19... Bc6
{[%clk 0:02:05.6]} 20. Rfe1 {[%clk 0:02:27.2]} 20... d4 {[%clk 0:02:05.9]} 21.
Ne4 {[%clk 0:02:26.7]} 21... Qh4 {[%clk 0:01:55.3]} 22. Qg3 {[%clk 0:02:22.2]}
22... Qxg3 {[%clk 0:01:54.4]} 23. hxg3 {[%clk 0:02:24.1]} 23... Bxe4 {[%clk
0:01:34]} 24. Rxe4 {[%clk 0:02:26]} 24... Kf7 {[%clk 0:01:34.8]} 25. Ba5 {[%clk
0:02:27.5]} 25... Re7 {[%clk 0:01:32.2]} 26. b4 {[%clk 0:02:15.7]} 26... Rc8
{[%clk 0:01:28.2]} 27. bxc5 {[%clk 0:02:15.3]} 27... Ree8 {[%clk 0:01:22.3]} 28.
Bb4 {[%clk 0:01:58.1]} 28... b6 {[%clk 0:01:12.1]} 29. cxb6 {[%clk 0:01:53.8]}
29... Rxc2 {[%clk 0:01:12]} 30. Ba3 {[%clk 0:00:56.1]} 30... Rc6 {[%clk
0:01:11.7]} 31. R1e2 {[%clk 0:00:52]} 31... Rb8 {[%clk 0:01:09.3]} 32. g4 {[%clk
0:00:49.7]} 32... Rbxb6 {[%clk 0:01:01.3]} 33. f5 {[%clk 0:00:47.4]} 33... gxf5
{[%clk 0:01:01.6]} 34. gxf5 {[%clk 0:00:49.3]} 34... exf5 {[%clk 0:01:02.2]} 35.
Re7+ {[%clk 0:00:50]} 35... Kg6 {[%clk 0:01:02.9]} 36. Rd7 {[%clk 0:00:37.7]}
36... Re6 {[%clk 0:00:58.4]} 37. Rf2 {[%clk 0:00:33.1]} 37... Rbc6 {[%clk
0:00:56.4]} 38. g3 {[%clk 0:00:23]} 38... Bh6 {[%clk 0:00:45.3]} 39. Rd5 {[%clk
0:00:22.3]} 39... Re1+ {[%clk 0:00:40.7]} 40. Kg2 {[%clk 0:00:22.3]} 40... Be3
{[%clk 0:00:41.3]} 41. Rfxf5 {[%clk 0:00:13.8]} 41... Rc2+ {[%clk 0:00:15.6]}
42. Kf3 {[%clk 0:00:14.9]} 42... Rf2+ {[%clk 0:00:14.9]} 43. Kg4 {[%clk
0:00:15.6]} 43... Rxf5 {[%clk 0:00:14.9]} 44. Rxf5 {[%clk 0:00:17.5]} 44... Rd1
{[%clk 0:00:15.4]} 45. Ra5 {[%clk 0:00:17.2]} 45... Rxd3 {[%clk 0:00:15.7]} 46.
Rxa6+ {[%clk 0:00:19]} 46... Kf7 {[%clk 0:00:16.4]} 47. Kf5 {[%clk 0:00:20.1]}
47... Bf2 {[%clk 0:00:17]} 48. Ra7+ {[%clk 0:00:21.1]} 48... Ke8 {[%clk
0:00:18]} 49. g4 {[%clk 0:00:22.1]} 49... h6 {[%clk 0:00:18.7]} 50. Bc5 {[%clk
0:00:19.6]} 50... Rf3+ {[%clk 0:00:18.4]} 51. Ke6 {[%clk 0:00:20.6]} 51... Kd8
{[%clk 0:00:18.5]} 52. Bd6 {[%clk 0:00:19.7]} 52... Kc8 {[%clk 0:00:17.8]} 53.
Kd5 {[%clk 0:00:17.5]} 53... d3 {[%clk 0:00:16.9]} 54. Rc7+ {[%clk 0:00:19]}
54... Kd8 {[%clk 0:00:17.5]} 55. Rb7 {[%clk 0:00:14.5]} 55... Rf6 {[%clk
0:00:14.4]} 56. Kc6 {[%clk 0:00:13.8]} 56... Rxd6+ {[%clk 0:00:14]} 57. Kxd6
{[%clk 0:00:15.7]} 57... Bg3+ {[%clk 0:00:15]} 58. Kc6 {[%clk 0:00:15.9]} 58...
d2 {[%clk 0:00:16.9]} 59. Rd7+ {[%clk 0:00:17]} 59... Kc8 {[%clk 0:00:17.5]} 60.
Rxd2 {[%clk 0:00:18.9]} 1-0

[Event "*** Titled Tuesday Blitz"]
[Site "Chess.com"]
[Date "2020.02.04"]
[Round "7"]
[White "Mikhail_Golubev"]
[Black "Kosche007"]
[Result "1/2-1/2"]
[WhiteElo "2524"]
[BlackElo "2314"]
[TimeControl "180+2"]
[EndTime "14:34:36 PST"]
[Termination "Game drawn by repetition"]

1. e4 {[%clk 0:03:01.9]} 1... c6 {[%clk 0:02:59.7]} 2. d4 {[%clk 0:03:01.5]}
2... d5 {[%clk 0:03:00.6]} 3. Nc3 {[%clk 0:03:02.9]} 3... dxe4 {[%clk
0:03:01.3]} 4. Nxe4 {[%clk 0:03:04]} 4... Bf5 {[%clk 0:03:03]} 5. Ng3 {[%clk
0:03:03.5]} 5... Bg6 {[%clk 0:03:04.7]} 6. Nf3 {[%clk 0:03:02.8]} 6... e6 {[%clk
0:03:05.4]} 7. h4 {[%clk 0:02:59.2]} 7... h6 {[%clk 0:03:05.7]} 8. Ne5 {[%clk
0:02:58.7]} 8... Bh7 {[%clk 0:03:06.8]} 9. Bd3 {[%clk 0:02:59.7]} 9... Bxd3
{[%clk 0:03:08.2]} 10. Qxd3 {[%clk 0:02:59.8]} 10... Nd7 {[%clk 0:03:09.8]} 11.
f4 {[%clk 0:02:54.7]} 11... Be7 {[%clk 0:03:10.1]} 12. Nh5 {[%clk 0:02:37.3]}
12... Ngf6 {[%clk 0:02:43.3]} 13. Nxg7+ {[%clk 0:02:32.4]} 13... Kf8 {[%clk
0:02:44.2]} 14. Nxe6+ {[%clk 0:02:32.7]} 14... fxe6 {[%clk 0:02:39.6]} 15. Qg6
{[%clk 0:02:20.5]} 15... Qe8 {[%clk 0:02:26.6]} 16. f5 {[%clk 0:02:21.7]} 16...
Qxg6 {[%clk 0:02:22.3]} 17. Nxg6+ {[%clk 0:02:20.8]} 17... Kg7 {[%clk
0:02:19.6]} 18. Nxe7 {[%clk 0:02:17.9]} 18... Rae8 {[%clk 0:01:46.6]} 19. Ng6
{[%clk 0:02:08.7]} 19... exf5+ {[%clk 0:01:44]} 20. Ne5 {[%clk 0:02:09.6]} 20...
Nxe5 {[%clk 0:01:45.2]} 21. dxe5 {[%clk 0:02:10.7]} 21... Rxe5+ {[%clk
0:01:46.8]} 22. Kf1 {[%clk 0:02:11.3]} 22... Rhe8 {[%clk 0:01:37.2]} 23. Bd2
{[%clk 0:02:12]} 23... Kg6 {[%clk 0:01:21.5]} 24. Bc3 {[%clk 0:02:05.3]} 24...
Re2 {[%clk 0:01:15.6]} 25. Rd1 {[%clk 0:01:37.7]} 25... R8e6 {[%clk 0:00:54.6]}
26. Rh3 {[%clk 0:01:21.7]} 26... Rxc2 {[%clk 0:00:50.4]} 27. h5+ {[%clk
0:00:58.5]} 27... Nxh5 {[%clk 0:00:37.3]} 28. Rd7 {[%clk 0:00:58.5]} 28... f4
{[%clk 0:00:26]} 29. Rxb7 {[%clk 0:00:33.6]} 29... Ng3+ {[%clk 0:00:23.1]} 30.
Rxg3+ {[%clk 0:00:25.5]} 30... fxg3 {[%clk 0:00:24.3]} 31. Rg7+ {[%clk
0:00:26.8]} 31... Kh5 {[%clk 0:00:21]} 32. Rxg3 {[%clk 0:00:28.2]} 32... Ree2
{[%clk 0:00:20.4]} 33. Kg1 {[%clk 0:00:27.2]} 33... Rc1+ {[%clk 0:00:18]} 34.
Kh2 {[%clk 0:00:25.9]} 34... Rcc2 {[%clk 0:00:19.6]} 35. Kh3 {[%clk 0:00:26.2]}
35... Rc1 {[%clk 0:00:19.3]} 36. Rg8 {[%clk 0:00:23.2]} 36... Re3+ {[%clk
0:00:15.5]} 37. Kh2 {[%clk 0:00:22.9]} 37... Rc2 {[%clk 0:00:16.7]} 38. a4
{[%clk 0:00:16.5]} 38... Re4 {[%clk 0:00:17.5]} 39. Kh3 {[%clk 0:00:15.9]} 39...
Re3+ {[%clk 0:00:13.7]} 40. g3 {[%clk 0:00:15.8]} 40... Rc1 {[%clk 0:00:12.5]}
41. Kg2 {[%clk 0:00:15]} 41... Rc2+ {[%clk 0:00:12.2]} 42. Kf1 {[%clk
0:00:15.6]} 42... Rh2 {[%clk 0:00:11]} 43. Kg1 {[%clk 0:00:14.6]} 43... Rc2
{[%clk 0:00:11.8]} 44. Kf1 {[%clk 0:00:13.6]} 44... Rexc3 {[%clk 0:00:12.7]} 45.
bxc3 {[%clk 0:00:13]} 45... Rxc3 {[%clk 0:00:14.5]} 46. Rg7 {[%clk 0:00:10.4]}
46... a5 {[%clk 0:00:14.6]} 47. Ra7 {[%clk 0:00:10.9]} 47... Kg4 {[%clk
0:00:14.8]} 48. Rxa5 {[%clk 0:00:10.8]} 48... Kxg3 {[%clk 0:00:16.1]} 49. Rh5
{[%clk 0:00:10]} 49... c5 {[%clk 0:00:15.3]} 50. Rxh6 {[%clk 0:00:09.9]} 50...
c4 {[%clk 0:00:16.8]} 51. Ke2 {[%clk 0:00:08.2]} 51... Ra3 {[%clk 0:00:16.5]}
52. Ra6 {[%clk 0:00:08.4]} 52... Kf4 {[%clk 0:00:15.9]} 53. Kd2 {[%clk
0:00:07.1]} 53... Ke4 {[%clk 0:00:17]} 54. Kc2 {[%clk 0:00:08.2]} 54... Kd4
{[%clk 0:00:18.2]} 55. Kb2 {[%clk 0:00:09]} 55... Rb3+ {[%clk 0:00:19.4]} 56.
Kc2 {[%clk 0:00:10.1]} 56... Ra3 {[%clk 0:00:19.9]} 57. Kb2 {[%clk 0:00:09.9]}
57... Rb3+ {[%clk 0:00:20]} 58. Kc2 {[%clk 0:00:11.1]} 58... Rh3 {[%clk
0:00:21.4]} 59. Rd6+ {[%clk 0:00:11.3]} 59... Kc5 {[%clk 0:00:22.2]} 60. Rd8
{[%clk 0:00:11.4]} 60... Kb4 {[%clk 0:00:22.5]} 61. Rb8+ {[%clk 0:00:10.7]}
61... Kxa4 {[%clk 0:00:22.6]} 62. Kb2 {[%clk 0:00:11.7]} 62... Rg3 {[%clk
0:00:20.9]} 63. Kc2 {[%clk 0:00:12.5]} 63... Rh3 {[%clk 0:00:19.9]} 64. Rb7
{[%clk 0:00:13.2]} 64... Rg3 {[%clk 0:00:19.5]} 65. Rb8 {[%clk 0:00:14.3]} 65...
Rh3 {[%clk 0:00:19.6]} 1/2-1/2

[Event "*** Titled Tuesday Blitz"]
[Site "Chess.com"]
[Date "2020.02.04"]
[Round "7"]
[White "ShahMatKanal"]
[Black "quesfr"]
[Result "0-1"]
[WhiteElo "2495"]
[BlackElo "2086"]
[TimeControl "180+2"]
[EndTime "14:35:43 PST"]
[Termination "quesfr won by resignation"]

1. d4 {[%clk 0:03:01.9]} 1... d5 {[%clk 0:03:00.6]} 2. c4 {[%clk 0:03:03.1]}
2... e6 {[%clk 0:03:01.8]} 3. Nc3 {[%clk 0:03:03.4]} 3... Be7 {[%clk 0:03:02]}
4. cxd5 {[%clk 0:03:02.3]} 4... exd5 {[%clk 0:03:03.9]} 5. Bf4 {[%clk
0:03:03.6]} 5... Nf6 {[%clk 0:03:03.4]} 6. e3 {[%clk 0:03:04]} 6... O-O {[%clk
0:03:03.4]} 7. Bd3 {[%clk 0:03:05.2]} 7... c5 {[%clk 0:03:04.2]} 8. Nge2 {[%clk
0:02:56.6]} 8... Nc6 {[%clk 0:03:05.3]} 9. O-O {[%clk 0:02:56.1]} 9... cxd4
{[%clk 0:03:05.5]} 10. exd4 {[%clk 0:02:40.9]} 10... Qb6 {[%clk 0:02:56]} 11.
Rb1 {[%clk 0:02:41]} 11... Bg4 {[%clk 0:02:52]} 12. Qd2 {[%clk 0:02:37.8]} 12...
a6 {[%clk 0:02:32]} 13. Be5 {[%clk 0:02:30.5]} 13... Rad8 {[%clk 0:02:10.7]} 14.
a3 {[%clk 0:01:54]} 14... Nxe5 {[%clk 0:01:58.4]} 15. dxe5 {[%clk 0:01:54.9]}
15... Ne4 {[%clk 0:01:59.5]} 16. Qf4 {[%clk 0:01:43.9]} 16... Nxc3 {[%clk
0:01:40.6]} 17. bxc3 {[%clk 0:01:36.6]} 17... Qe6 {[%clk 0:01:41]} 18. Rxb7
{[%clk 0:01:21]} 18... Bxa3 {[%clk 0:01:17.2]} 19. Nd4 {[%clk 0:01:11.2]} 19...
Qc8 {[%clk 0:01:12.7]} 20. Rb3 {[%clk 0:00:48]} 20... Bc5 {[%clk 0:00:56.8]} 21.
Bf5 {[%clk 0:00:36.1]} 21... Bxf5 {[%clk 0:00:52.7]} 22. Nxf5 {[%clk 0:00:38]}
22... Kh8 {[%clk 0:00:45]} 23. Qg5 {[%clk 0:00:36.7]} 23... Rg8 {[%clk
0:00:39.7]} 24. c4 {[%clk 0:00:33.2]} 24... Qc6 {[%clk 0:00:18.6]} 25. cxd5
{[%clk 0:00:25.9]} 25... Rxd5 {[%clk 0:00:16.2]} 26. Rb8 {[%clk 0:00:16.7]}
26... Qg6 {[%clk 0:00:15.9]} 27. Rxg8+ {[%clk 0:00:12.6]} 27... Kxg8 {[%clk
0:00:14.7]} 28. Ne7+ {[%clk 0:00:13]} 28... Bxe7 {[%clk 0:00:14.9]} 29. Qxe7
{[%clk 0:00:14.9]} 29... h6 {[%clk 0:00:13.4]} 30. h3 {[%clk 0:00:09.2]} 30...
Qf5 {[%clk 0:00:08.6]} 31. Ra1 {[%clk 0:00:06.3]} 31... Rxe5 {[%clk 0:00:07.3]}
32. Qd8+ {[%clk 0:00:05.7]} 32... Kh7 {[%clk 0:00:08.4]} 33. Qd2 {[%clk
0:00:04.7]} 33... a5 {[%clk 0:00:07.9]} 34. Kf1 {[%clk 0:00:03.4]} 34... Rd5
{[%clk 0:00:07]} 35. Qe2 {[%clk 0:00:03.6]} 35... h5 {[%clk 0:00:06.3]} 36. Kg1
{[%clk 0:00:04.4]} 36... g6 {[%clk 0:00:06.1]} 37. h4 {[%clk 0:00:05.5]} 37...
Qe5 {[%clk 0:00:02.7]} 38. Qa2 {[%clk 0:00:05.3]} 38... Kg7 {[%clk 0:00:02.3]}
39. Rf1 {[%clk 0:00:05.8]} 39... Qf5 {[%clk 0:00:03.2]} 40. Rb1 {[%clk
0:00:06.4]} 40... Rd4 {[%clk 0:00:03.6]} 41. Qb2 {[%clk 0:00:07.4]} 41... Qf6
{[%clk 0:00:04.4]} 42. Rf1 {[%clk 0:00:07.9]} 42... Rxh4 {[%clk 0:00:04.8]} 43.
Qa3 {[%clk 0:00:08.8]} 43... Rf4 {[%clk 0:00:05]} 44. Qxa5 {[%clk 0:00:09.6]}
44... Rf5 {[%clk 0:00:06.1]} 45. Qd2 {[%clk 0:00:10.4]} 45... Qg5 {[%clk
0:00:06.8]} 46. Qd4+ {[%clk 0:00:11.2]} 46... Qf6 {[%clk 0:00:07.9]} 47. Qe3
{[%clk 0:00:13.1]} 47... Qe5 {[%clk 0:00:08.8]} 48. Qh3 {[%clk 0:00:13.1]} 48...
Qe6 {[%clk 0:00:08.3]} 49. Qd3 {[%clk 0:00:14]} 49... Rd5 {[%clk 0:00:08.7]} 50.
Qc3+ {[%clk 0:00:15.2]} 50... Qe5 {[%clk 0:00:09.3]} 51. Qc4 {[%clk 0:00:16.5]}
51... Rd4 {[%clk 0:00:09.9]} 52. Qc6 {[%clk 0:00:17.5]} 52... Re4 {[%clk
0:00:09.9]} 53. Qc2 {[%clk 0:00:17.1]} 53... h4 {[%clk 0:00:09.8]} 54. Qd3
{[%clk 0:00:17.6]} 54... Qf5 {[%clk 0:00:10.1]} 55. Qc3+ {[%clk 0:00:18]} 55...
Kh7 {[%clk 0:00:11.1]} 56. Qd3 {[%clk 0:00:17.7]} 56... Qf4 {[%clk 0:00:10.3]}
57. Qh3 {[%clk 0:00:18.3]} 57... Re5 {[%clk 0:00:10.4]} 58. g3 {[%clk
0:00:18.3]} 58... Rg5 {[%clk 0:00:11.1]} 59. Kh2 {[%clk 0:00:17.4]} 59... Qg4
{[%clk 0:00:11.5]} 60. Qxh4+ {[%clk 0:00:17.1]} 60... Qxh4+ {[%clk 0:00:11.2]}
61. gxh4 {[%clk 0:00:19]} 61... Rg4 {[%clk 0:00:11.4]} 62. Kh3 {[%clk
0:00:20.2]} 62... f5 {[%clk 0:00:12.6]} 63. Re1 {[%clk 0:00:20.1]} 63... Kh6
{[%clk 0:00:13.7]} 64. Re8 {[%clk 0:00:21.3]} 64... Kg7 {[%clk 0:00:11.8]} 65.
Re7+ {[%clk 0:00:22.1]} 65... Kh6 {[%clk 0:00:12.4]} 66. Rb7 {[%clk 0:00:24]}
66... Rg1 {[%clk 0:00:12.4]} 67. Kh2 {[%clk 0:00:24.5]} 67... Rg4 {[%clk
0:00:13]} 68. Kh3 {[%clk 0:00:26]} 68... Rf4 {[%clk 0:00:11.3]} 69. Kg3 {[%clk
0:00:26.3]} 69... Rc4 {[%clk 0:00:12.1]} 70. f3 {[%clk 0:00:26.6]} 70... Rc1
{[%clk 0:00:12.6]} 71. Ra7 {[%clk 0:00:26.4]} 71... Rh1 {[%clk 0:00:12.9]} 72.
Ra4 {[%clk 0:00:26.1]} 72... Rg1+ {[%clk 0:00:13.3]} 73. Kh2 {[%clk 0:00:27.1]}
73... Rf1 {[%clk 0:00:12.9]} 74. Kg2 {[%clk 0:00:28.1]} 74... Rc1 {[%clk
0:00:13.4]} 75. Ra2 {[%clk 0:00:28.7]} 75... Kh5 {[%clk 0:00:13.4]} 76. Ra6
{[%clk 0:00:22.6]} 76... Rc4 {[%clk 0:00:12]} 77. Kg3 {[%clk 0:00:19.6]} 77...
Rxh4 {[%clk 0:00:12.8]} 78. Rxg6 {[%clk 0:00:05.8]} 78... f4+ {[%clk 0:00:13.3]}
79. Kg2 {[%clk 0:00:04.7]} 79... Kxg6 {[%clk 0:00:14.4]} 80. Kf2 {[%clk
0:00:04.1]} 80... Rh2+ {[%clk 0:00:14.5]} 0-1